[Event "DMP-III LIGA Senior PK 2020"]
[Site "Bystre"]
[Date "2020.07.12"]
[Round "8.11"]
[White "Karas, Kacper"]
[Black "Lach, Mateusz"]
[Result "0-1"]
[ECO "A84"]
[WhiteElo "1150"]
[BlackElo "1674"]
[Annotator "NA RC"]
[PlyCount "142"]
[EventDate "2020.07.05"]
[EventType "team-tourn"]
[EventCountry "POL"]
[SourceTitle "playchess.com"]
[Source "ChessBase"]
[SourceQuality "1"]
[TimeControl "5400+30"]

1. c4 {[%emt 0:00:00]} e6 {[%emt 0:00:00]} 2. d4 {[%emt 0:00:53]} f5 {[%emt 0:00:00]} 3. Nc3 {[%emt 0:02:06]} Nf6 {[%emt 0:02:31]} 4. Nf3 {[%emt 0:01:26]} Be7 {[%emt 0:00:22]} 5. Bd2 {[%emt 0:02:16]} O-O {[%emt 0:00:18]} 6. e3 {[%emt 0:00:05]} b6 {[%emt 0:01:34]} 7. Be2 {[%emt 0:10:14]} Bb7 {[%emt 0:00:07]} 8. Qc2 {[%emt 0:00:08]} d5 {[%emt 0:01:40]} 9. Rg1 {[%emt 0:06:04]} c5 {[%emt 0:01:08]} 10. Ne5 {[%emt 0:05:27]} Nbd7 {[%emt 0:01:08]} 11. Nxd7 {[%emt 0:00:55]} Qxd7 {[%emt 0:00:14]} 12. dxc5 {[%emt 0:01:17]} Bxc5 {[%emt 0:00:32]} 13. cxd5 {[%emt 0:12:10]} Nxd5 {[%emt 0:01:51]} 14. Nxd5 {[%emt 0:01:42]} Bxd5 {[%emt 0:00:29]} 15. g4 {[%emt 0:16:15]} Rac8 {[%emt 0:04:30]} 16. Qd3 {[%emt 0:05:33]} Qf7 {[%emt 0:05:58]} 17. gxf5 {[%emt 0:01:11]} exf5 {[%emt 0:01:52]} 18. Bc3 {[%emt 0:02:01]} Be4 {[%emt 0:19:01]} 19. Qc4 {[%emt 0:00:10]} g6 {[%emt 0:02:06]} 20. Qxf7+ {[%emt 0:07:33]} Kxf7 {[%emt 0:05:19]} 21. h4 {[%emt 0:11:19]} h6 {[%emt 0:01:28]} 22. Bc4+ {[%emt 0:03:47]} Ke7 {[%emt 0:00:17]} 23. Rxg6 {[%emt 0:00:15]} Rc6 {[%emt 0:05:45]} 24. Rg7+ {[%emt 0:01:54]} Kd8 {[%emt 0:02:52]} 25. Rxa7 {[%emt 0:02:11]} Bf3 {[%emt 0:07:33]} 26. Ra8+ {[%emt 0:01:00]} Ke7 {[%emt 0:07:15]} 27. Rxf8 {[%emt 0:00:15]} Kxf8 {[%emt 0:00:08]} 28. Be2 {[%emt 0:00:06]} Rg6 {[%emt 0:03:55]} 29. Kf1 {[%emt 0:00:25]} Bg2+ {[%emt 0:01:46]} 30. Ke1 {[%emt 0:00:18]} Be4 {[%emt 0:01:02]} 31. Rd1 {[%emt 0:03:40]} Rg1+ {[%emt 0:00:38]} 32. Kd2 {[%emt 0:00:13]} Rg2 {[%emt 0:00:14]} 33. Ke1 {[%emt 0:00:45]} Rg1+ {[%emt 0:00:05]} 34. Kd2 {[%emt 0:00:03]} Rg2 {[%emt 0:00:11]} 35. Ke1 {[%emt 0:03:18]} f4 {[%emt 0:18:03]} 36. b4 {[%emt 0:00:22]} Be7 {[%emt 0:03:05]} 37. f3 {[%emt 0:00:38]} Bxh4+ {[%emt 0:00:44]} 38. Kf1 {[%emt 0:00:01]} Rf2+ {[%emt 0:00:14]} 39. Kg1 {[%emt 0:00:28]} Bxf3 {[%emt 0:01:03]} 40. Bxf3 {[%emt 0:00:28]} Rxf3 {[%emt 0:00:01]} 41. Rf1 {[%emt 0:00:57]} Rg3+ {[%emt 0:00:15]} 42. Kh1 {[%emt 0:00:26]} f3 {[%emt 0:00:01]} 43. Kh2 {[%emt 0:00:43]} Ke7 {[%emt 0:01:48]} 44. Be5 {[%emt 0:00:17]} Rg2+ {[%emt 0:00:01]} 45. Kh3 {[%emt 0:00:26]} Rf2 {[%emt 0:00:00]} 46. Rxf2 {[%emt 0:00:44]} Bxf2 {[%emt 0:00:02]} 47. Kg4 {[%emt 0:00:03]} Bxe3 {[%emt 0:00:44]} 48. Kxf3 {[%emt 0:00:13]} Bd2 {[%emt 0:00:24]} 49. Bg7 {[%emt 0:01:13]} b5 {[%emt 0:00:09]} 50. Ke2 {[%emt 0:00:10]} Bg5 {[%emt 0:00:17]} 51. Bd4 {[%emt 0:00:51]} Kd6 {[%emt 0:00:13]} 52. Kf3 {[%emt 0:00:31]} Kd5 {[%emt 0:00:01]} 53. Bc5 {[%emt 0:00:12]} Kc4 {[%emt 0:00:00]} 54. Kg4 {[%emt 0:00:20]} Kc3 {[%emt 0:00:30]} 55. Kh5 {[%emt 0:00:58]} Kb2 {[%emt 0:00:47]} 56. Bf8 {[%emt 0:00:31]} Kxa2 {[%emt 0:00:10]} 57. Kg4 {[%emt 0:00:14]} Kb3 {[%emt 0:00:04]} 58. Kf3 {[%emt 0:00:07]} Bd2 {[%emt 0:00:07]} 59. Ke2 {[%emt 0:00:50]} Bg5 {[%emt 0:00:18]} 60. Kf3 {[%emt 0:00:34]} h5 {[%emt 0:00:15]} 61. Ke2 {[%emt 0:00:24]} Bf6 {[%emt 0:00:56]} 62. Kf2 {[%emt 0:00:51]} Bc3 {[%emt 0:00:35]} 63. Kg3 {[%emt 0:00:27]} Bxb4 {[%emt 0:00:15]} 64. Bg7 {[%emt 0:00:05]} Be1+ {[%emt 0:00:37]} 65. Kf4 {[%emt 0:00:50]} Kc4 {[%emt 0:00:28]} 66. Kg5 {[%emt 0:00:18]} h4 {[%emt 0:00:06]} 67. Kg4 {[%emt 0:00:11]} b4 {[%emt 0:00:07]} 68. Kf3 {[%emt 0:01:01]} Bc3 {[%emt 0:00:30]} 69. Bh6 {[%emt 0:00:19]} Kd3 {[%emt 0:00:19]} 70. Bc1 {[%emt 0:00:37]} Kc2 {[%emt 0:00:01]} 71. Be3 {[%emt 0:00:42]} b3 {[%emt 0:00:12]} 0-1

[Event "DMP-III LIGA Senior PK 2020"]
[Site "Bystre"]
[Date "2020.07.12"]
[Round "8.12"]
[White "Wladyka, Angelika"]
[Black "Uliasz, Katarzyna"]
[Result "0-1"]
[ECO "B22"]
[WhiteElo "1601"]
[BlackElo "1386"]
[Annotator "NA RC"]
[PlyCount "98"]
[EventDate "2020.07.05"]
[EventType "team-tourn"]
[EventCountry "POL"]
[SourceTitle "playchess.com"]
[Source "ChessBase"]
[SourceQuality "1"]
[TimeControl "5400+30"]

1. e4 c5 2. c3 d5 3. exd5 Qxd5 4. d4 Nc6 5. Nf3 e6 6. Be2 Nf6 7. O-O h6 8. dxc5 Bxc5 9. Qxd5 exd5 10. Nbd2 O-O 11. Nb3 Bb6 12. Bf4 Ne4 13. Rad1 Re8 14. Bd3 Bg4 15. h3 Bxf3 16. gxf3 Nf6 17. Rfe1 a6 18. Kf1 Red8 19. Be3 Bxe3 20. fxe3 Ne5 21. Kf2 Kf8 22. Nd4 g6 23. Rd2 Ke7 24. Red1 Rac8 25. Bf1 Ke8 26. Nc2 Ke7 27. Nb4 Nc4 28. Bxc4 dxc4 29. Nd5+ Nxd5 30. Rxd5 Rxd5 31. Rxd5 Ke6 32. Rd4 b5 33. e4 Rc6 34. Ke3 g5 35. Rd5 Rd6 36. Rxd6+ Kxd6 37. Kd4 f6 38. b3 cxb3 39. axb3 a5 40. c4 bxc4 41. Kxc4 Kc6 42. Kd4 Kb5 43. Kd5 Kb4 44. Ke6 Kxb3 45. Kxf6 a4 46. e5 a3 47. e6 a2 48. e7 a1=Q+ 49. Kf7 Qa7 0-1

[Event "DMP-III LIGA Senior PK 2020"]
[Site "Bystre"]
[Date "2020.07.12"]
[Round "8.15"]
[White "Palacki, Rafal"]
[Black "Biesiadecki, Adam"]
[Result "1-0"]
[ECO "B23"]
[WhiteElo "1755"]
[BlackElo "1539"]
[Annotator "NA RC"]
[PlyCount "77"]
[EventDate "2020.07.05"]
[EventType "team-tourn"]
[EventCountry "POL"]
[SourceTitle "playchess.com"]
[Source "ChessBase"]
[SourceQuality "1"]
[TimeControl "5400+30"]

1. e4 {[%emt 0:00:00]} c5 {[%emt 0:00:00]} 2. Nc3 {[%emt 0:00:00]} Nc6 {[%emt 0:00:21]} 3. f4 {[%emt 0:03:58]} e6 {[%emt 0:00:29]} 4. Nf3 {[%emt 0:00:24]} d5 {[%emt 0:00:14]} 5. Bb5 {[%emt 0:01:22]} Nf6 {[%emt 0:02:37]} 6. e5 {[%emt 0:04:05]} Nd7 {[%emt 0:00:44]} 7. Bxc6 {[%emt 0:04:04]} bxc6 {[%emt 0:00:02]} 8. d3 {[%emt 0:00:45]} Qc7 {[%emt 0:02:23]} 9. O-O {[%emt 0:01:08]} Ba6 {[%emt 0:01:47]} 10. b3 {[%emt 0:01:53]} g6 {[%emt 0:01:21]} 11. Qe1 {[%emt 0:01:16]} c4 {[%emt 0:02:05]} 12. bxc4 {[%emt 0:02:15]} dxc4 {[%emt 0:00:26]} 13. d4 {[%emt 0:00:40]} h5 {[%emt 0:02:40]} 14. Ng5 {[%emt 0:02:25]} Nb6 {[%emt 0:01:19]} 15. a4 {[%emt 0:05:05]} Nd5 {[%emt 0:03:04]} 16. Nce4 {[%emt 0:01:47]} c3 {[%emt 0:13:24]} 17. Rf3 {[%emt 0:02:33]} c5 {[%emt 0:03:29]} 18. dxc5 {[%emt 0:03:16]} Bxc5+ {[%emt 0:00:26]} 19. Kh1 {[%emt 0:00:57]} Rc8 {[%emt 0:02:03]} 20. Ba3 {[%emt 0:05:03]} Bxa3 {[%emt 0:03:04]} 21. Rxa3 {[%emt 0:00:46]} O-O {[%emt 0:01:38]} 22. Nxc3 {[%emt 0:23:57]} Rfd8 {[%emt 0:04:59]} 23. Nxd5 {[%emt 0:07:50]} Rxd5 {[%emt 0:01:20]} 24. Rfc3 {[%emt 0:04:21]} Qxc3 {[%emt 0:02:57]} 25. Rxc3 {[%emt 0:00:08]} Rxc3 {[%emt 0:00:01]} 26. Ne4 {[%emt 0:01:38]} Re3 {[%emt 0:00:21]} 27. Qxe3 {[%emt 0:00:49]} Rd1+ {[%emt 0:00:04]} 28. Qg1 {[%emt 0:00:05]} Rxg1+ {[%emt 0:00:03]} 29. Kxg1 {[%emt 0:00:12]} Bc4 {[%emt 0:00:43]} 30. Kf2 {[%emt 0:00:39]} Kf8 {[%emt 0:00:48]} 31. Ke3 {[%emt 0:00:26]} Ke7 {[%emt 0:00:32]} 32. Kd4 {[%emt 0:00:13]} Bd5 {[%emt 0:00:16]} 33. g3 {[%emt 0:02:46]} Bc6 {[%emt 0:02:01]} 34. a5 {[%emt 0:00:25]} Kd7 {[%emt 0:01:59]} 35. Nd6 {[%emt 0:00:42]} f5 {[%emt 0:00:42]} 36. Kc5 {[%emt 0:00:24]} Ba4 {[%emt 0:00:30]} 37. c4 {[%emt 0:01:11]} Bc6 {[%emt 0:01:42]} 38. Nc8 {[%emt 0:01:43]} a6 {[%emt 0:00:32]} 39. Ne7 {[%emt 0:00:19]} 1-0

[Event "DMP-III LIGA Senior PK 2020"]
[Site "Bystre"]
[Date "2020.07.12"]
[Round "8.16"]
[White "Juszczuk, Grzegorz"]
[Black "Zajac, Karol"]
[Result "1/2-1/2"]
[ECO "D02"]
[WhiteElo "1809"]
[BlackElo "1652"]
[Annotator "NA RC"]
[PlyCount "56"]
[EventDate "2020.07.05"]
[EventType "team-tourn"]
[EventCountry "POL"]
[SourceTitle "playchess.com"]
[Source "ChessBase"]
[SourceQuality "1"]
[TimeControl "5400+30"]

1. d4 {[%emt 0:00:00]} d5 {[%emt 0:00:00]} 2. Nf3 {[%emt 0:00:00]} Nf6 {[%emt 0:00:00]} 3. Bf4 {[%emt 0:00:00]} e6 {[%emt 0:00:13]} 4. e3 {[%emt 0:00:07]} Bd6 {[%emt 0:00:09]} 5. Ne5 {[%emt 0:00:10]} O-O {[%emt 0:00:53]} 6. Be2 {[%emt 0:00:15]} c5 {[%emt 0:02:02]} 7. O-O {[%emt 0:00:16]} b6 {[%emt 0:03:18]} 8. c3 {[%emt 0:00:39]} Qc7 {[%emt 0:00:49]} 9. Nd2 {[%emt 0:00:56]} Nbd7 {[%emt 0:01:29]} 10. Ndf3 {[%emt 0:00:30]} Ne4 {[%emt 0:00:25]} 11. Bd3 {[%emt 0:01:52]} Bb7 {[%emt 0:02:07]} 12. Nxd7 {[%emt 0:00:42]} Qxd7 {[%emt 0:00:39]} 13. Ne5 {[%emt 0:00:15]} Qc7 {[%emt 0:06:16]} 14. Qg4 {[%emt 0:03:31]} Rae8 {[%emt 0:04:04]} 15. f3 {[%emt 0:01:39]} f6 {[%emt 0:01:10]} 16. fxe4 {[%emt 0:03:30]} fxe5 {[%emt 0:00:52]} 17. Bxe5 {[%emt 0:01:24]} Bxe5 {[%emt 0:01:15]} 18. Rxf8+ {[%emt 0:00:21]} Kxf8 {[%emt 0:00:34]} 19. dxe5 {[%emt 0:00:16]} Qxe5 {[%emt 0:00:41]} 20. Bb5 {[%emt 0:03:28]} Re7 {[%emt 0:01:18]} 21. Qh4 {[%emt 0:06:00]} g5 {[%emt 0:08:33]} 22. Rf1+ {[%emt 0:06:57]} Kg8 {[%emt 0:03:48]} 23. Qf2 {[%emt 0:01:24]} Qg7 {[%emt 0:00:08]} 24. exd5 {[%emt 0:01:35]} Bxd5 {[%emt 0:02:30]} 25. Qg3 {[%emt 0:03:50]} Rf7 {[%emt 0:06:26]} 26. Qb8+ {[%emt 0:01:55]} Qf8 {[%emt 0:00:10]} 27. Qxf8+ {[%emt 0:00:40]} Rxf8 {[%emt 0:00:48]} 28. a3 {[%emt 0:00:25]} Rxf1+ {[%emt 0:01:12]} 1/2-1/2

[Event "DMP-III LIGA Senior PK 2020"]
[Site "Bystre"]
[Date "2020.07.12"]
[Round "8.18"]
[White "Krzyzanowska-Zadlo, Lidia"]
[Black "Tarsa, Joanna"]
[Result "1/2-1/2"]
[ECO "B23"]
[WhiteElo "1801"]
[BlackElo "1574"]
[Annotator "NA RC"]
[PlyCount "96"]
[EventDate "2020.07.05"]
[EventType "team-tourn"]
[EventCountry "POL"]
[SourceTitle "playchess.com"]
[Source "ChessBase"]
[SourceQuality "1"]
[TimeControl "5400+30"]

1. e4 {[%emt 0:00:00]} c5 {[%emt 0:00:00]} 2. Nc3 {[%emt 0:00:00]} Nc6 {[%emt 0:00:03]} 3. f4 {[%emt 0:00:22]} d6 {[%emt 0:00:46]} 4. Bb5 {[%emt 0:07:07]} e6 {[%emt 0:05:09]} 5. Nf3 {[%emt 0:00:27]} Bd7 {[%emt 0:00:57]} 6. O-O {[%emt 0:00:33]} Nf6 {[%emt 0:05:12]} 7. d3 {[%emt 0:02:11]} Be7 {[%emt 0:02:17]} 8. h3 {[%emt 0:06:44]} a6 {[%emt 0:05:44]} 9. Bxc6 {[%emt 0:00:43]} Bxc6 {[%emt 0:00:26]} 10. g4 {[%emt 0:04:38]} Qc7 {[%emt 0:03:13]} 11. Qe1 {[%emt 0:04:41]} O-O-O {[%emt 0:02:57]} 12. a4 {[%emt 0:04:27]} h5 {[%emt 0:15:59]} 13. g5 {[%emt 0:00:45]} Nd7 {[%emt 0:00:25]} 14. h4 {[%emt 0:00:53]} g6 {[%emt 0:05:27]} 15. Bd2 {[%emt 0:08:27]} Rhe8 {[%emt 0:05:58]} 16. b3 {[%emt 0:13:21]} d5 {[%emt 0:04:06]} 17. e5 {[%emt 0:00:30]} d4 {[%emt 0:02:06]} 18. Ne4 {[%emt 0:00:39]} Bxe4 {[%emt 0:00:06]} 19. Qxe4 {[%emt 0:00:19]} Nb8 {[%emt 0:04:18]} 20. Kh1 {[%emt 0:09:53]} Qc6 {[%emt 0:02:29]} 21. Qe2 {[%emt 0:03:03]} b6 {[%emt 0:03:19]} 22. Kh2 {[%emt 0:00:28]} Qd5 {[%emt 0:01:11]} 23. Rfd1 {[%emt 0:02:53]} Nc6 {[%emt 0:01:15]} 24. Be1 {[%emt 0:00:43]} Nb4 {[%emt 0:01:47]} 25. Nd2 {[%emt 0:01:00]} Qb7 {[%emt 0:02:28]} 26. Ne4 {[%emt 0:08:03]} Nd5 {[%emt 0:02:10]} 27. Bd2 {[%emt 0:01:07]} a5 {[%emt 0:01:34]} 28. Kg3 {[%emt 0:02:04]} Nb4 {[%emt 0:03:32]} 29. Bxb4 {[%emt 0:02:48]} cxb4 {[%emt 0:00:17]} 30. Nd2 {[%emt 0:00:14]} Qd5 {[%emt 0:01:58]} 31. Nc4 {[%emt 0:00:16]} Kb7 {[%emt 0:01:00]} 32. Re1 {[%emt 0:01:15]} Rc8 {[%emt 0:01:02]} 33. Qf2 {[%emt 0:00:11]} Red8 {[%emt 0:00:50]} 34. Re4 {[%emt 0:00:25]} Bf8 {[%emt 0:01:31]} 35. Rae1 {[%emt 0:02:40]} Be7 {[%emt 0:03:50]} 36. R1e2 {[%emt 0:00:50]} Bf8 {[%emt 0:00:13]} 37. Qe1 {[%emt 0:02:26]} Re8 {[%emt 0:04:21]} 38. Qa1 {[%emt 0:00:47]} Red8 {[%emt 0:01:13]} 39. Qg1 {[%emt 0:04:00]} Bc5 {[%emt 0:01:21]} 40. Qa1 {[%emt 0:00:33]} Bf8 {[%emt 0:00:10]} 41. Qg1 {[%emt 0:01:59]} Bc5 {[%emt 0:00:04]} 42. Qg2 {[%emt 0:00:55]} Ka7 {[%emt 0:00:55]} 43. Qg1 {[%emt 0:00:35]} Kb7 {[%emt 0:00:04]} 44. Nd6+ Bxd6 45. exd6 Qxd6 46. Re5 Rc3 47. Rb5 Rdc8 48. Re4 Rd8 1/2-1/2

[Event "DMP-III LIGA Senior PK 2020"]
[Site "Bystre"]
[Date "2020.07.12"]
[Round "8.21"]
[White "Wojciechowski, Beniamin"]
[Black "Babiarz, Arkadiusz"]
[Result "0-1"]
[ECO "B23"]
[WhiteElo "1835"]
[BlackElo "1840"]
[Annotator "NA RC"]
[PlyCount "64"]
[EventDate "2020.07.05"]
[EventType "team-tourn"]
[EventCountry "POL"]
[SourceTitle "playchess.com"]
[Source "ChessBase"]
[SourceQuality "1"]
[TimeControl "5400+30"]

1. e4 {[%emt 0:00:00]} c5 {[%emt 0:00:00]} 2. Nc3 {[%emt 0:00:00]} e6 {[%emt 0:00:00]} 3. Nge2 {[%emt 0:00:00]} Nc6 {[%emt 0:00:51]} 4. g3 {[%emt 0:00:00]} Nf6 {[%emt 0:00:19]} 5. Bg2 {[%emt 0:00:00]} Be7 {[%emt 0:01:08]} 6. O-O {[%emt 0:01:11]} O-O {[%emt 0:00:07]} 7. d3 {[%emt 0:01:37]} Rb8 {[%emt 0:06:08]} 8. Bg5 {[%emt 0:21:08]} b5 {[%emt 0:04:06]} 9. Qd2 {[%emt 0:00:46]} b4 {[%emt 0:09:08]} 10. Na4 {[%emt 0:02:02]} Qa5 {[%emt 0:00:49]} 11. b3 {[%emt 0:00:14]} c4 {[%emt 0:01:24]} 12. Bf4 {[%emt 0:01:45]} c3 {[%emt 0:02:28]} 13. Qd1 {[%emt 0:03:19]} e5 {[%emt 0:04:32]} 14. Bg5 {[%emt 0:04:45]} Qc7 {[%emt 0:03:18]} 15. d4 {[%emt 0:19:54]} Ba6 {[%emt 0:08:10]} 16. d5 {[%emt 0:05:08]} Bxe2 {[%emt 0:02:38]} 17. Qxe2 {[%emt 0:00:09]} Nd4 {[%emt 0:00:02]} 18. Qd3 {[%emt 0:01:10]} Nxd5 {[%emt 0:00:26]} 19. exd5 {[%emt 0:05:11]} Bxg5 {[%emt 0:00:06]} 20. f4 {[%emt 0:00:09]} Bf6 {[%emt 0:01:05]} 21. Be4 {[%emt 0:10:16]} g6 {[%emt 0:03:00]} 22. Qa6 {[%emt 0:08:47]} d6 {[%emt 0:06:25]} 23. a3 {[%emt 0:03:50]} Bg7 {[%emt 0:01:38]} 24. f5 {[%emt 0:02:36]} gxf5 {[%emt 0:07:21]} 25. Bxf5 {[%emt 0:00:04]} Rb5 {[%emt 0:07:23]} 26. Be4 {[%emt 0:02:43]} Qd7 {[%emt 0:02:03]} 27. axb4 {[%emt 0:02:00]} f5 {[%emt 0:00:46]} 28. Bd3 {[%emt 0:00:55]} Rxb4 {[%emt 0:00:08]} 29. Nxc3 {[%emt 0:02:39]} e4 {[%emt 0:00:41]} 30. Bc4 {[%emt 0:02:03]} Nf3+ {[%emt 0:00:30]} 31. Rxf3 {[%emt 0:00:26]} exf3 {[%emt 0:00:01]} 32. Nd1 {[%emt 0:00:37]} Qe7 {[%emt 0:01:54]} 0-1

[Event "DMP-III LIGA Senior PK 2020"]
[Site "Bystre"]
[Date "2020.07.12"]
[Round "8.22"]
[White "Ziemniak, Piotr"]
[Black "Krynicki, Grzegorz"]
[Result "1-0"]
[ECO "B28"]
[WhiteElo "1791"]
[BlackElo "1369"]
[Annotator "NA RC"]
[PlyCount "91"]
[EventDate "2020.07.05"]
[EventType "team-tourn"]
[EventCountry "POL"]
[SourceTitle "playchess.com"]
[Source "ChessBase"]
[SourceQuality "1"]
[TimeControl "5400+30"]

1. e4 c5 2. Nf3 a6 3. d4 cxd4 4. Nxd4 Nf6 5. Nd2 e5 6. N4f3 d6 7. Bc4 Qc7 8. Ng5 d5 9. Bxd5 Nxd5 10. exd5 h6 11. Nge4 b5 12. b3 Bb4 13. O-O O-O 14. Bb2 f5 15. c3 Ba5 16. Ng3 Bb7 17. c4 Nd7 18. Rc1 Qd6 19. Nf3 bxc4 20. bxc4 Rab8 21. Qc2 e4 22. Nd4 g6 23. Nb3 Bb4 24. Ba1 Ne5 25. Rfd1 Nd3 26. Rxd3 exd3 27. Qxd3 Qf4 28. Rd1 Rfe8 29. h3 Re1+ 30. Rxe1 Bxe1 31. Qe2 Bb4 32. Qe6+ Kf8 33. Be5 Qg5 34. Bxb8 Qe7 35. Qxe7+ Kxe7 36. Bf4 a5 37. Bd2 Ba6 38. Bxb4+ axb4 39. Nd2 Kd6 40. Ne2 Kc5 41. g4 fxg4 42. hxg4 Kb6 43. Nd4 Ka5 44. Nc6+ Ka4 45. d6 Bc8 46. Ne5 1-0

[Event "DMP-III LIGA Senior PK 2020"]
[Site "Bystre"]
[Date "2020.07.12"]
[Round "8.23"]
[White "Borukalo, Zdzislaw"]
[Black "Wozniak, Grzegorz"]
[Result "0-1"]
[ECO "B22"]
[WhiteElo "1679"]
[BlackElo "1608"]
[Annotator "NA RC"]
[PlyCount "64"]
[EventDate "2020.07.05"]
[EventType "team-tourn"]
[EventCountry "POL"]
[SourceTitle "playchess.com"]
[Source "ChessBase"]
[SourceQuality "1"]
[TimeControl "5400+30"]

1. e4 {[%emt 0:00:00]} c5 {[%emt 0:00:00]} 2. c3 {[%emt 0:00:00]} e6 {[%emt 0:00:02]} 3. d4 {[%emt 0:00:00]} cxd4 {[%emt 0:01:12]} 4. cxd4 {[%emt 0:00:00]} d5 {[%emt 0:00:16]} 5. e5 {[%emt 0:00:23]} Qb6 {[%emt 0:01:51]} 6. Nf3 {[%emt 0:00:12]} Nc6 {[%emt 0:00:33]} 7. Nc3 {[%emt 0:06:10]} Nge7 {[%emt 0:06:00]} 8. Na4 {[%emt 0:01:31]} Qc7 {[%emt 0:02:51]} 9. Be2 {[%emt 0:12:27]} Ng6 {[%emt 0:07:05]} 10. O-O {[%emt 0:12:02]} Be7 {[%emt 0:00:29]} 11. g3 {[%emt 0:00:11]} f6 {[%emt 0:01:28]} 12. exf6 {[%emt 0:00:41]} Bxf6 {[%emt 0:00:47]} 13. h4 {[%emt 0:02:43]} O-O {[%emt 0:03:21]} 14. h5 {[%emt 0:02:46]} Nge7 {[%emt 0:00:37]} 15. Bf4 {[%emt 0:02:03]} e5 {[%emt 0:06:27]} 16. dxe5 {[%emt 0:00:18]} Nxe5 {[%emt 0:00:40]} 17. Rc1 {[%emt 0:07:37]} Nxf3+ {[%emt 0:06:41]} 18. Bxf3 {[%emt 0:00:14]} Qd8 {[%emt 0:03:18]} 19. Bc7 {[%emt 0:02:35]} Qd7 {[%emt 0:02:26]} 20. Bf4 {[%emt 0:03:08]} Qf5 {[%emt 0:28:40]} 21. Bg2 {[%emt 0:22:22]} Be5 {[%emt 0:04:37]} 22. Bxe5 {[%emt 0:01:17]} Qxe5 {[%emt 0:00:06]} 23. Re1 {[%emt 0:03:51]} Qd6 {[%emt 0:02:23]} 24. Nc3 {[%emt 0:04:21]} Be6 {[%emt 0:06:28]} 25. Nb5 {[%emt 0:02:24]} Qb6 {[%emt 0:00:30]} 26. Rxe6 {[%emt 0:01:12]} Qxf2+ {[%emt 0:00:09]} 27. Kh2 {[%emt 0:00:37]} Nf5 {[%emt 0:00:52]} 28. Qb3 {[%emt 0:05:35]} Nh4 {[%emt 0:05:25]} 29. Rc2 {[%emt 0:02:34]} Nf3+ {[%emt 0:01:11]} 30. Kh3 {[%emt 0:01:55]} Ng1+ {[%emt 0:02:25]} 31. Kh4 {[%emt 0:01:54]} Rf4+ {[%emt 0:00:03]} 32. Kg5 {[%emt 0:00:55]} h6+ {[%emt 0:00:53]} 0-1

[Event "DMP-III LIGA Senior PK 2020"]
[Site "Bystre"]
[Date "2020.07.12"]
[Round "8.24"]
[White "Polak, Sylwia"]
[Black "Krzysztynska, Anna"]
[Result "0-1"]
[ECO "E98"]
[WhiteElo "1614"]
[BlackElo "1857"]
[Annotator "NA RC"]
[PlyCount "98"]
[EventDate "2020.07.05"]
[EventType "team-tourn"]
[EventCountry "POL"]
[SourceTitle "playchess.com"]
[Source "ChessBase"]
[SourceQuality "1"]
[TimeControl "5400+30"]

1. d4 {[%emt 0:00:00]} Nf6 {[%emt 0:00:00]} 2. c4 {[%emt 0:00:00]} g6 {[%emt 0:00:00]} 3. Nc3 {[%emt 0:00:00]} Bg7 {[%emt 0:00:00]} 4. e4 {[%emt 0:00:21]} d6 {[%emt 0:00:00]} 5. Nf3 {[%emt 0:00:04]} O-O {[%emt 0:00:20]} 6. Be2 {[%emt 0:00:09]} Nc6 {[%emt 0:00:59]} 7. O-O {[%emt 0:00:29]} e5 {[%emt 0:00:20]} 8. d5 {[%emt 0:00:05]} Ne7 {[%emt 0:00:05]} 9. Ne1 {[%emt 0:01:21]} Nd7 {[%emt 0:05:24]} 10. Be3 {[%emt 0:01:40]} f5 {[%emt 0:01:04]} 11. f3 {[%emt 0:00:08]} f4 {[%emt 0:01:03]} 12. Bf2 {[%emt 0:00:05]} g5 {[%emt 0:00:55]} 13. Nd3 {[%emt 0:00:28]} b6 {[%emt 0:03:48]} 14. b4 {[%emt 0:02:54]} a5 {[%emt 0:03:23]} 15. a3 {[%emt 0:00:25]} Ba6 {[%emt 0:05:02]} 16. Qb3 {[%emt 0:03:46]} h5 {[%emt 0:03:50]} 17. c5 {[%emt 0:04:34]} g4 {[%emt 0:09:36]} 18. b5 {[%emt 0:07:51]} Bc8 {[%emt 0:01:35]} 19. cxd6 {[%emt 0:00:31]} cxd6 {[%emt 0:01:44]} 20. fxg4 {[%emt 0:02:41]} hxg4 {[%emt 0:03:46]} 21. Bxg4 {[%emt 0:01:11]} Nf6 {[%emt 0:01:19]} 22. Bxc8 {[%emt 0:00:23]} Rxc8 {[%emt 0:00:53]} 23. Nxe5 {[%emt 0:07:03]} Rxc3 {[%emt 0:08:58]} 24. Qxc3 {[%emt 0:21:26]} Nxe4 {[%emt 0:12:18]} 25. Qh3 {[%emt 0:03:46]} Bxe5 {[%emt 0:11:44]} 26. Qe6+ {[%emt 0:03:55]} Kg7 {[%emt 0:01:39]} 27. Bh4 {[%emt 0:03:31]} Nf6 {[%emt 0:03:41]} 28. Rad1 {[%emt 0:04:33]} Ng6 {[%emt 0:02:52]} 29. Bf2 {[%emt 0:01:40]} Ne4 {[%emt 0:04:25]} 30. Bd4 {[%emt 0:03:09]} Nc5 {[%emt 0:01:30]} 31. Qg4 {[%emt 0:01:07]} Qf6 {[%emt 0:02:18]} 32. Bxe5 {[%emt 0:03:24]} Qxe5 {[%emt 0:00:50]} 33. Rfe1 {[%emt 0:06:35]} Qf5 {[%emt 0:00:50]} 34. Re7+ {[%emt 0:03:26]} Kh6 {[%emt 0:01:15]} 35. Qxf5 {[%emt 0:00:19]} Rxf5 {[%emt 0:00:01]} 36. Re8 {[%emt 0:01:06]} Ne5 {[%emt 0:02:27]} 37. Rd8 {[%emt 0:03:03]} Rf6 {[%emt 0:02:37]} 38. Rb8 {[%emt 0:02:10]} Ncd7 {[%emt 0:02:11]} 39. Rc8 {[%emt 0:01:09]} f3 {[%emt 0:02:10]} 40. Rf1 {[%emt 0:03:36]} fxg2 {[%emt 0:01:27]} 41. Kxg2 {[%emt 0:00:21]} Kg5 {[%emt 0:01:11]} 42. Rg8+ {[%emt 0:01:58]} Rg6 {[%emt 0:00:27]} 43. Rh8 {[%emt 0:00:51]} Rh6 {[%emt 0:00:40]} 44. Rg8+ {[%emt 0:00:30]} Rg6 {[%emt 0:00:21]} 45. Rh8 {[%emt 0:00:58]} Rf6 {[%emt 0:00:23]} 46. Rg8+ {[%emt 0:00:35]} Kh6 {[%emt 0:00:15]} 47. Re8 {[%emt 0:01:53]} Rg6+ {[%emt 0:00:52]} 48. Kh3 {[%emt 0:00:44]} Nf6 {[%emt 0:00:29]} 49. Rd1 {[%emt 0:01:40]} Nxe8 {[%emt 0:00:06]} 0-1